bitfinex/quotes_ETHUSD_20241204
["timestamp","ask_amount","ask_price","bid_price","bid_amount"]
[1733329293046,1.0138,3787.5,3787.1,2.64054]
[1733329293251,1.0138,3787.5,3786.2,2.64117]
[1733329293252,1.0138,3787.5,3787.4,2.64033]
[1733329293398,0.03300383,3789.2,3787.5,3.0]
[1733329293605,0.37772649,3790.0,3788.3,3.0]
[1733329293606,0.03300099,3789.4,3788.3,3.0]
[1733329293848,0.03300099,3789.4,3786.9,0.01325037]
[1733329293849,0.03300099,3789.4,3788.8,2.63931]
[1733329294042,0.03300099,3789.4,3788.3,5.63965]
[1733329294243,0.03300099,3789.4,3788.5,3.0]
[1733329294466,0.03028046,3790.1,3788.1,3.0]
[1733329294616,0.03028046,3790.1,3787.7,3.0]
[1733329294950,0.03028046,3790.1,3789.1,3.0]
[1733329295249,0.23653597,3790.5,3787.4,2.64029]
[1733329295250,0.23653597,3790.5,3788.0,0.01594487]
[1733329295546,1.43498554,3790.2,3789.7,3.0]
[1733329295753,1.40471301,3790.2,3789.7,3.0]
[1733329295902,1.40471301,3790.2,3788.1,2.63984]
[1733329295903,1.40471301,3790.2,3788.7,3.0]
[1733329296104,0.03027479,3790.1,3789.2,5.63905]
[1733329296337,0.14349878,3790.0,3789.3,2.63896]
[1733329296652,0.03027391,3789.9,3789.4,3.0]
[1733329296968,0.03027391,3789.9,3789.1,2.6391]
[1733329297142,0.03027391,3789.9,3789.2,2.63905]
[1733329297461,1.40471301,3790.2,3789.8,2.63865]
[1733329297750,1.40471301,3790.2,3789.9,3.0]
[1733329297919,1.40471301,3790.2,3789.7,3.0]
[1733329298128,1.40471301,3790.2,3789.3,2.639]
[1733329298129,1.40471301,3790.2,3789.4,3.0]
[1733329298458,1.40471301,3790.2,3790.0,2.63851]
[1733329298607,1.40471301,3790.2,3789.4,3.0]
[1733329298807,1.40471301,3790.2,3789.9,2.63858]
[1733329299053,1.40471301,3790.2,3790.0,3.0]
[1733329299363,1.40471301,3790.2,3789.5,3.0]
[1733329299521,1.40471301,3790.2,3790.0,2.63846]
[1733329299720,1.40471301,3790.2,3789.2,3.0]
[1733329299721,0.030269,3790.7,3789.9,3.0]
[1733329299925,0.030269,3790.7,3789.2,3.0]
[1733329299926,0.030269,3790.7,3789.3,2.639]
[1733329300138,0.030269,3790.7,3789.2,3.0]
[1733329300434,0.030269,3790.7,3789.4,3.0]
[1733329300603,0.23697809,3790.6,3789.4,3.0]
[1733329300809,0.03026918,3790.5,3790.0,2.63849]
[1733329301052,0.03026918,3790.5,3790.1,2.63842]
[1733329301220,0.03026758,3791.1,3789.6,3.0]
[1733329301425,0.55,3790.9,3790.1,2.63838]
[1733329301664,0.03026757,3790.8,3789.6,3.0]
[1733329301821,0.03026988,3790.7,3790.4,2.63823]
[1733329302017,0.1648521,3791.8,3790.0,3.0]
[1733329302218,0.61651757,3791.7,3791.1,2.63773]
[1733329302418,0.61651757,3791.7,3790.2,3.0]
[1733329302419,0.0302594,3791.6,3790.2,3.0]
[1733329302641,0.23712214,3791.5,3790.5,3.0]
[1733329302845,0.26738601,3791.4,3790.5,5.63816]
[1733329303072,0.03026387,3791.4,3790.5,5.63816]
[1733329303363,0.2370071,3791.3,3790.5,3.0]
[1733329303515,0.03026508,3791.2,3790.5,2.63817]
[1733329303854,0.95939367,3791.6,3790.5,2.63812]
[1733329304061,0.55,3791.4,3790.2,2.63837]
[1733329304266,0.55,3791.4,3789.9,3.0]
[1733329304267,0.26724026,3791.3,3790.1,2.63845]
[1733329304413,0.26724026,3791.3,3789.2,3.0]
[1733329304414,0.55,3791.2,3789.2,3.0]
[1733329304620,0.14826873,3791.5,3789.6,3.0]
[1733329304621,0.55,3791.0,3789.6,3.0]
[1733329304842,0.03026893,3790.9,3789.6,3.0]
[1733329305166,0.03026893,3790.9,3790.0,2.63851]
[1733329305318,0.03026893,3790.9,3790.1,5.63845]
[1733329305642,0.03026893,3790.9,3790.0,3.0]
[1733329305856,0.03026893,3790.9,3789.2,3.0]
[1733329306011,0.03026893,3790.9,3790.2,2.63836]
[1733329306215,0.03026893,3790.9,3789.8,5.6386]
[1733329306216,0.03026893,3790.9,3790.5,2.63817]
[1733329306468,0.55,3791.0,3790.0,2.63848]
[1733329306763,0.55,3791.0,3788.8,3.79268477]
[1733329306764,0.03026615,3790.9,3790.1,3.0]
[1733329306918,0.78684334,3790.8,3789.2,2.63901]
[1733329307115,0.03027352,3790.7,3789.1,3.0]
[1733329307319,0.03027352,3790.7,3789.7,2.63868]
[1733329307624,0.03027168,3790.7,3789.4,3.0]
[1733329307936,0.55,3790.6,3789.5,3.0]
[1733329308117,0.2671408,3790.5,3789.5,3.0]
[1733329308323,0.55,3790.2,3787.3,2.64035]
[1733329308552,0.55,3789.9,3787.5,2.64026]
[1733329308753,0.55,3789.7,3787.5,2.64026]
[1733329308990,0.03027664,3789.6,3788.1,2.6398]
[1733329309205,0.03027664,3789.6,3787.5,5.28052]
[1733329309407,0.03027664,3789.6,3787.4,2.64033]
[1733329309551,0.03027664,3789.6,3788.2,2.63977]
[1733329309754,0.55,3789.4,3788.1,2.63978]
[1733329309996,0.55,3789.2,3787.3,2.6404]
[1733329310299,0.03028441,3789.1,3787.5,2.64026]
[1733329310501,0.03028441,3789.1,3788.6,2.63943]
[1733329311008,0.03028441,3789.1,3789.0,2.63921]
[1733329311009,0.03027987,3789.1,3789.0,2.63921]
[1733329311171,0.03027613,3790.0,3789.1,3.0]
[1733329311378,0.03027613,3790.0,3788.5,2.63956]
[1733329311678,0.03027586,3791.0,3789.6,2.63878]
[1733329311879,0.03027586,3791.0,3789.1,2.63914]
[1733329312064,0.03027586,3791.0,3789.2,3.0]
[1733329312305,0.61598199,3790.9,3789.6,2.63879]
[1733329312574,0.64625583,3790.8,3789.6,2.63879]
[1733329312886,0.55,3790.6,3789.4,3.0]
[1733329313087,0.61582175,3790.7,3787.9,2.63994]
[1733329313088,0.55,3790.4,3788.5,5.63952]
[1733329313296,0.55,3790.1,3788.8,2.63934]
[1733329313471,0.55,3789.9,3787.6,2.64019]
[1733329313679,0.0302764,3789.8,3789.5,2.63885]
[1733329314188,0.55,3790.1,3788.5,2.63949]
[1733329314189,0.0302751,3790.1,3789.7,2.63873]
[1733329314376,0.03027375,3790.0,3789.7,2.63873]
[1733329315096,0.03027375,3790.0,3789.1,2.6391]
[1733329315097,0.03027375,3790.0,3789.2,3.0]
[1733329315300,0.03027375,3790.0,3789.9,2.63859]
[1733329315599,0.03027375,3790.0,3788.7,3.0]
[1733329315600,0.03027276,3790.0,3788.7,3.0]
[1733329315901,0.03027276,3790.0,3789.6,2.63879]
[1733329316291,0.03027276,3790.0,3789.7,2.63872]
[1733329316626,0.03027276,3790.0,3789.8,2.63861]
[1733329316832,0.55,3790.2,3789.5,2.6388]
[1733329317130,0.03027301,3790.1,3790.0,2.63852]
[1733329317286,0.41,3790.2,3790.0,2.63852]
[1733329317682,0.03027181,3790.7,3789.1,3.0]
[1733329317683,0.51472779,3790.6,3789.7,2.6387]
[1733329317882,0.03027245,3790.5,3789.7,2.6387]
[1733329318086,0.03027245,3790.5,3789.8,2.63859]
[1733329318325,0.03027245,3790.5,3789.7,2.63871]
[1733329318535,0.03027245,3790.5,3788.9,4.15460306]
[1733329318536,0.16487385,3791.5,3791.2,2.63768]
[1733329318682,0.51506062,3791.2,3791.1,2.63775]
[1733329318888,2.91078061,3792.5,3790.9,3.0]
[1733329318889,0.03297293,3792.3,3790.9,3.0]
[1733329319130,2.54897242,3792.5,3791.2,3.0]
[1733329319316,0.49776114,3792.4,3791.6,2.63739]
[1733329319624,0.03296999,3792.3,3791.3,2.63755]
[1733329319853,0.30137611,3792.4,3791.4,2.6375]
[1733329320013,0.03297128,3792.2,3791.4,2.6375]
[1733329320211,0.03297128,3792.2,3790.9,3.0]
[1733329320422,0.03297238,3792.1,3790.8,3.0]
[1733329320583,0.03297238,3792.1,3790.5,5.63812]
[1733329320789,0.51785671,3792.5,3791.2,3.0]
[1733329321016,0.41277315,3792.4,3791.2,3.0]
[1733329321237,0.23739888,3792.3,3791.2,3.0]
[1733329321440,0.27036973,3792.2,3791.5,2.63747]
[1733329321589,0.03297085,3792.2,3790.7,3.0]
[1733329321790,0.03297085,3792.2,3791.3,3.0]
[1733329322243,0.03297085,3792.2,3789.6,2.63878]
[1733329322244,0.03297085,3792.2,3789.9,2.18930298]
[1733329322540,2.8792,3792.0,3789.0,0.6220453]
[1733329322738,0.75113558,3792.1,3788.9,1.5542]
[1733329322739,0.55,3791.8,3788.9,1.5542]
[1733329323035,0.55,3791.6,3789.0,0.17135497]
[1733329323242,0.55,3791.4,3789.9,1.5136]
[1733329323387,0.16480762,3792.0,3791.8,2.63725]
[1733329323728,0.39562583,3793.1,3790.4,0.52402921]
[1733329323729,0.38143229,3793.0,3791.1,1.6005]
[1733329323932,0.03296476,3792.9,3791.4,2.63754]
[1733329324135,0.03296476,3792.9,3791.6,0.414408]
[1733329324428,0.23822362,3792.8,3791.2,3.0]
[1733329324633,3.15935408,3793.1,3791.0,0.9186]
[1733329324634,0.03297198,3792.7,3791.0,0.9186]
[1733329324807,2.63674,3792.6,3790.7,3.0]
[1733329325002,0.3237661,3792.5,3791.3,2.63758]
[1733329325212,0.3237661,3792.5,3790.6,3.381412]
[1733329325213,0.55,3792.4,3790.6,0.381412]
[1733329325536,0.55,3791.8,3790.0,2.63848]
[1733329325741,0.55,3791.6,3790.0,2.63847]
[1733329325902,0.55,3791.4,3789.8,2.63864]
[1733329326235,0.55,3791.2,3790.0,2.6385]
[1733329326387,0.55,3791.2,3789.4,0.633812]
[1733329326388,0.55,3791.0,3789.9,2.63855]
[1733329326592,2.63806,3790.7,3788.7,2.63942]
[1733329326921,2.63806,3790.7,3788.2,2.63977]
[1733329326922,2.63839,3790.2,3788.9,1.055902]
[1733329327104,1.20199165,3790.1,3788.2,2.63972]
[1733329327371,1.20199165,3790.1,3786.8,0.62643866]
[1733329327372,0.55,3789.9,3787.0,1.6346]
[1733329327603,0.82118213,3790.1,3787.8,1.056186]
[1733329327604,0.55,3789.7,3787.8,1.056186]
[1733329327938,0.23818588,3790.1,3787.0,1.6346]
[1733329327939,0.55,3789.5,3788.5,2.63956]
[1733329328089,0.0329945,3790.0,3787.7,1.5233]
[1733329328291,0.23818588,3789.9,3789.8,2.63866]
[1733329328496,0.52066056,3790.5,3789.2,2.63904]
[1733329328497,0.27086843,3790.4,3789.2,2.63904]
[1733329328731,0.27086843,3790.4,3788.3,0.51485962]
[1733329328732,0.03298471,3790.4,3788.3,0.51485962]
[1733329328904,0.23773835,3790.3,3789.0,2.63917]
[1733329329110,0.23773835,3790.3,3788.3,0.51485962]
[1733329329111,0.03299006,3790.2,3788.3,0.51485962]
[1733329329445,0.03299006,3790.2,3789.1,2.63908]
[1733329329749,0.55,3790.1,3788.9,3.0]
[1733329329888,0.55,3789.9,3788.2,3.0]
[1733329330094,0.65101389,3790.7,3789.0,3.0]
[1733329330292,0.38034256,3791.3,3790.2,2.63837]
[1733329330531,0.66688434,3791.4,3788.9,4.5087]
[1733329330532,0.27069531,3791.2,3789.8,3.0]
[1733329330833,0.27069531,3791.2,3788.9,4.5087]
[1733329330834,0.61826366,3791.1,3789.0,3.0]
[1733329331043,0.03298816,3791.0,3789.0,3.0]
[1733329331341,0.61826366,3790.9,3789.4,2.63893]
[1733329331549,0.79184239,3790.8,3787.5,2.6402]
[1733329331696,2.63833,3790.3,3787.9,2.63998]
[1733329331895,2.63833,3790.3,3787.8,3.19002]
[1733329331896,0.55,3790.1,3787.8,3.19002]
[1733329332130,0.55,3789.9,3788.5,2.63956]
[1733329332439,8.95488641,3790.7,3787.8,3.19002]
[1733329332440,0.55,3789.7,3788.4,2.63959]
[1733329332643,0.23775086,3790.6,3788.0,0.01595405]
[1733329332794,0.38054678,3790.5,3788.3,2.63964]
[1733329332997,0.03298812,3790.7,3788.4,0.01594437]
[1733329333322,0.23770818,3791.4,3790.7,2.63803]
[1733329333499,0.39619016,3791.7,3788.9,1.5514]
[1733329333500,0.03297726,3791.6,3790.9,2.63788]
[1733329333700,0.39619016,3791.7,3790.1,3.0]
[1733329333935,0.39619016,3791.7,3791.5,2.63744]
[1733329334117,8.79,3793.3,3790.5,0.01590795]
[1733329334118,0.23782136,3791.6,3790.5,0.01590795]
[1733329334402,0.03296681,3792.7,3790.8,2.63793]
[1733329334610,0.03296721,3792.6,3791.1,5.63771]
[1733329334888,0.03297273,3792.5,3790.9,3.0]
[1733329335036,0.03297205,3792.4,3791.4,3.0]
[1733329335343,0.03297205,3792.4,3791.2,3.0]
[1733329335544,0.03297154,3792.3,3790.0,1.5477]
[1733329335841,0.29996058,3792.2,3790.5,3.0]
[1733329336145,0.29996058,3792.2,3789.5,4.21185]
[1733329336146,0.55,3792.0,3789.5,4.21185]
[1733329336323,0.55,3791.8,3790.8,2.63795]
[1733329336525,0.55,3791.6,3790.8,2.63795]
[1733329336707,0.032975,3791.5,3789.5,1.573]
[1733329336913,0.032975,3791.5,3789.6,0.1573]
[1733329337110,0.03297547,3791.5,3790.7,2.63803]
[1733329337309,0.13297346,3792.5,3789.6,0.1573]
[1733329337511,0.13297346,3792.5,3787.8,0.75]
[1733329337512,2.3706,3792.2,3788.7,1.5283]
[1733329337714,2.63733,3791.7,3788.5,2.63952]
[1733329337951,2.6377,3791.2,3788.2,1.5301]
[1733329338104,0.53982181,3790.8,3788.2,1.5301]
[1733329338297,0.55,3790.6,3788.2,1.5301]
[1733329338495,0.53982181,3790.8,3788.2,1.5301]
[1733329338496,0.55,3790.4,3788.2,2.63976]
[1733329338716,0.55,3790.2,3787.4,2.65628346]
[1733329338959,0.53982181,3790.8,3788.3,2.6397]
[1733329338960,0.02365768,3789.5,3788.3,2.6397]
[1733329339127,0.02365768,3789.5,3788.4,2.63959]
[1733329339326,0.02365768,3789.5,3787.3,1.6002]
[1733329339327,0.55,3789.4,3787.3,1.6002]
[1733329339534,0.05665059,3789.5,3786.7,0.53702535]
[1733329339535,0.55,3789.2,3787.4,2.64026]
[1733329339732,0.55,3789.2,3786.8,1.6042]
[1733329339733,0.55,3789.0,3787.1,2.64047]
[1733329339925,0.55,3788.8,3786.8,1.6042]
[1733329340126,0.55,3788.6,3787.4,2.64027]
[1733329340319,0.55,3788.6,3786.8,1.6042]
[1733329340320,0.03300227,3788.5,3786.8,1.6042]
[1733329340543,0.55,3788.4,3786.6,2.64082]
[1733329340717,0.55,3788.2,3786.6,2.64082]
[1733329341064,0.55,3788.0,3785.9,2.64136]
[1733329341220,0.55,3787.8,3785.9,2.64136]
[1733329341415,2.63948,3788.7,3785.3,2.64177]
[1733329341416,0.55,3787.6,3785.3,2.64177]
[1733329341615,3.18931,3788.9,3786.4,2.64096]
[1733329341815,0.64362414,3789.3,3785.5,2.64165]
[1733329341816,0.55,3788.5,3785.5,2.64165]
[1733329342044,0.55,3788.3,3785.5,0.01599009]
[1733329342247,0.03300687,3788.2,3785.5,0.01599009]
[1733329342414,0.03300687,3788.2,3787.4,2.6403]
[1733329342615,0.03300687,3788.2,3785.6,1.5794]
[1733329342810,0.55,3788.1,3785.6,1.5794]
[1733329343019,0.55,3787.9,3786.0,2.64129]
[1733329343255,0.55,3787.7,3785.7,0.15794]
[1733329343464,0.03301154,3787.6,3786.7,2.64075]
[1733329343752,0.55,3787.5,3785.7,0.15794]
[1733329343956,0.55,3787.5,3785.6,1.5794]
[1733329343957,0.55,3788.5,3785.8,2.64144]
[1733329344128,0.03301101,3789.1,3785.8,0.35223622]
[1733329344327,0.03300112,3789.4,3786.5,1.5193]
[1733329344542,0.0329948,3789.3,3787.3,2.64036]
[1733329344769,0.02365768,3789.5,3789.1,3.0]
[1733329345059,0.05664718,3789.5,3787.6,1.5193]
[1733329345267,0.05664718,3789.5,3788.5,3.0]
[1733329345561,0.02365768,3789.5,3787.9,3.0]
[1733329345744,0.02365768,3789.5,3787.7,0.15193]
[1733329345745,0.03299844,3789.4,3787.8,2.64002]
[1733329345954,0.03299844,3789.4,3787.9,3.0]
[1733329346175,0.03299844,3789.4,3787.7,0.15193]
[1733329346176,0.03299825,3789.4,3787.8,2.63999]
[1733329346359,0.03299825,3789.4,3787.0,3.0]
[1733329346694,0.03299825,3789.4,3786.1,2.64119]
[1733329346695,0.03300251,3789.3,3785.7,4.81106]
[1733329346994,0.03300251,3789.3,3785.8,0.0159813]
[1733329347187,0.03300251,3789.3,3785.7,4.26106]
[1733329347188,0.53313972,3789.0,3787.0,2.64054]
[1733329347374,0.53313972,3789.0,3785.7,1.6196]
[1733329347375,0.55,3788.8,3785.7,1.6196]
[1733329347545,0.55,3788.6,3785.9,2.64137]
[1733329347745,0.02365768,3789.5,3787.0,2.6406]
[1733329347746,0.55,3788.4,3787.0,2.6406]
[1733329347996,0.55,3788.2,3787.0,2.64057]
[1733329348146,0.02365768,3789.5,3786.1,0.01597929]
[1733329348147,0.52907398,3789.0,3786.1,0.01597929]
[1733329348454,0.58300386,3788.9,3785.8,2.64138]
[1733329348653,0.58300386,3788.9,3785.7,1.63557585]
[1733329348654,3.18932,3788.9,3785.7,1.6196]
[1733329348857,0.5830052,3788.9,3786.8,2.64074]
[1733329349171,0.5830052,3788.9,3785.7,1.6196]
[1733329349172,0.5830052,3788.9,3785.8,2.65741726]
[1733329349545,0.5830052,3788.9,3785.8,2.64144]
[1733329349845,0.58300568,3788.9,3785.9,2.64134]
[1733329350044,0.58300568,3788.9,3786.8,2.64072]
[1733329350045,0.55,3788.7,3786.8,2.64072]
[1733329350384,0.55,3788.5,3786.8,3.0]
[1733329350584,0.55,3788.3,3786.5,3.0]
[1733329350792,0.55,3788.1,3785.8,2.6414]
[1733329351084,0.55,3788.1,3785.2,8.64179708]
[1733329351085,0.55,3787.9,3786.4,2.64098]
[1733329351286,0.03301098,3788.0,3785.2,8.64179708]
[1733329351287,0.55,3787.7,3785.5,2.64163]
[1733329351593,0.55,3787.7,3785.2,5.99995708]
[1733329351594,0.03300923,3787.6,3786.8,2.64069]
[1733329351763,0.55,3788.2,3786.9,2.64067]
[1733329351965,0.55,3788.2,3785.2,5.99995708]
[1733329351966,0.55,3788.0,3787.0,2.64058]
[1733329352148,0.03300786,3787.9,3787.0,2.64058]
[1733329352474,0.55,3787.8,3785.3,3.0]
[1733329352794,0.55,3787.6,3785.5,2.6416]
[1733329352978,0.55,3787.4,3785.3,2.64179]
[1733329353284,0.0330182,3788.0,3785.4,0.01599878]
[1733329353487,0.55,3787.8,3786.5,2.64092]
[1733329353691,0.55,3787.6,3785.7,2.64147]
[1733329353891,6.66,3788.7,3785.0,2.64199]
[1733329353892,0.55,3787.4,3785.0,2.64199]
[1733329354063,0.03301399,3787.3,3786.4,2.64102]
[1733329354471,0.55,3787.2,3786.0,3.0]
[1733329354655,0.53361702,3787.6,3784.9,1.5007]
[1733329354656,0.55,3787.0,3784.9,1.5007]
[1733329354888,0.03301895,3786.9,3784.9,1.5007]
[1733329355066,0.55,3786.8,3785.9,2.64137]
[1733329355309,0.55,3786.8,3785.3,2.64179]
[1733329355462,0.03301703,3786.7,3785.7,2.64151]
[1733329355802,0.03301703,3786.7,3785.7,2.6415]
[1733329356010,2.64115,3786.3,3785.2,5.99995708]
[1733329356302,0.55,3785.7,3785.2,5.99995708]
[1733329356518,0.55,3785.5,3785.2,0.52800001]
[1733329356855,0.56749333,3785.8,3785.2,0.52800001]
[1733329356856,0.53446177,3785.8,3785.2,0.52800001]
[1733329357269,0.03302618,3786.9,3786.1,2.6412]
[1733329357469,0.53868551,3786.2,3785.2,3.16984001]
[1733329357669,0.53868551,3786.2,3785.6,2.64155]
[1733329357869,0.53868551,3786.2,3785.4,2.6417]
[1733329358103,0.03301732,3786.1,3785.4,2.64169]
[1733329358607,0.03301732,3786.1,3785.2,3.52800001]
[1733329358813,0.55,3787.7,3785.4,3.0]
[1733329359104,0.52224794,3786.5,3786.4,2.64103]
[1733329359312,0.52224794,3786.5,3786.3,2.64109]
[1733329359465,0.52224794,3786.5,3786.4,5.64103]
[1733329359666,0.03301427,3788.0,3786.4,3.0]
[1733329359920,0.51649155,3787.0,3785.3,3.0]
[1733329360128,0.03301165,3787.9,3785.4,1.5538]
[1733329360267,0.53993963,3787.1,3786.8,2.64074]
[1733329360613,0.0330103,3788.5,3785.6,3.0]
[1733329360764,0.03301186,3788.4,3785.8,2.64144]
[1733329360970,0.03301186,3788.4,3786.3,3.0]
[1733329361195,0.03301186,3788.4,3786.6,1.5538]
[1733329361393,0.03301186,3788.4,3786.9,3.0]
[1733329361589,0.03301186,3788.4,3786.1,2.64124]
[1733329361590,0.5388306,3787.9,3787.0,2.64061]
[1733329361902,0.03300746,3787.8,3786.7,2.64077]
[1733329362105,0.03300746,3787.8,3786.6,3.0]
[1733329362341,0.03300959,3787.7,3786.1,2.64124]
[1733329362541,0.03301445,3787.6,3786.2,3.0]
[1733329362706,0.03301465,3787.5,3785.4,2.64171]
[1733329362912,0.5191321,3786.9,3784.8,0.52219513]
[1733329363128,0.58302254,3786.8,3784.8,0.52219513]
[1733329363322,0.55,3786.8,3784.8,0.52219513]
[1733329363495,0.55,3786.8,3785.7,2.6415]
[1733329363700,0.55,3786.8,3785.8,2.64144]
[1733329364132,0.55,3786.8,3785.2,3.16985001]
[1733329364316,0.55,3786.8,3785.2,0.52800001]
[1733329365132,0.5407846,3785.9,3785.2,0.52800001]
[1733329365337,0.58302913,3785.8,3785.2,0.52800001]
[1733329365697,0.03302913,3785.8,3785.2,0.52800001]
[1733329366646,0.55,3785.7,3785.2,0.52800001]
[1733329366790,0.55,3785.5,3785.2,0.52800001]
[1733329366992,0.03303001,3785.4,3785.2,0.52800001]
[1733329367450,0.03303001,3785.4,3785.2,0.1155]
[1733329367451,0.55,3785.3,3785.2,0.1155]
[1733329367806,0.78695969,3785.3,3785.2,0.1155]
[1733329368134,0.81999763,3785.3,3785.2,0.1155]
[1733329368443,0.81999763,3785.3,3783.2,2.64326]
[1733329368444,1.16615739,3785.3,3783.2,2.64326]
[1733329368597,1.16615739,3785.3,3783.3,2.64318]
[1733329368797,0.23695969,3785.2,3783.3,2.64318]
[1733329369004,0.82000048,3785.1,3782.8,3.0]
[1733329369199,0.55,3784.9,3783.7,2.6429]
[1733329369512,0.55,3784.7,3783.5,5.64305]
[1733329369710,0.39493283,3786.1,3783.7,3.0]
[1733329369711,0.56817334,3784.6,3783.7,3.0]
[1733329369942,0.55,3784.5,3783.7,2.64291]
[1733329370147,0.55,3784.5,3783.3,2.64316]
[1733329370148,0.55,3784.3,3782.5,2.64372]
[1733329370478,0.03304116,3784.2,3782.9,2.64341]
[1733329370629,0.03304116,3784.2,3782.1,1.653]
[1733329370630,0.55,3784.1,3782.1,1.653]
[1733329370814,0.03304125,3784.0,3783.2,2.64324]
[1733329371013,0.55,3784.0,3783.4,5.4467856]
[1733329371215,0.55,3784.0,3783.4,2.8036856]
[1733329371423,0.03304125,3783.9,3783.4,2.8036856]
[1733329371629,0.55,3783.8,3783.4,2.8036856]
[1733329371845,0.55,3783.6,3783.4,2.8036856]
[1733329372412,0.55,3784.2,3783.5,2.64305]
[1733329372859,0.53586336,3784.6,3784.1,2.64262]
[1733329373154,0.23671921,3785.2,3783.7,0.01603241]
[1733329373353,0.03303384,3785.2,3784.3,2.64248]
[1733329373553,0.26513363,3786.4,3784.6,2.64227]
[1733329373554,0.26975104,3785.7,3784.6,2.64227]
[1733329373756,0.03303183,3785.7,3784.6,2.64227]
[1733329374082,0.51874279,3785.2,3783.5,3.0]
[1733329374378,0.51874279,3785.2,3783.9,3.0]
[1733329374379,0.03303126,3785.1,3783.9,3.0]
[1733329374545,0.03303126,3785.1,3784.4,2.64242]
[1733329374739,0.51874279,3785.2,3784.5,2.64233]
[1733329375082,0.51874279,3785.2,3783.6,2.64298]
[1733329375083,0.03303033,3785.1,3783.7,3.0]
[1733329375372,0.39493283,3786.5,3783.8,0.01603063]
[1733329375373,0.23681739,3785.7,3783.8,0.01603063]
[1733329375580,0.23681739,3786.1,3784.3,2.64249]
[1733329375732,0.3788904,3786.8,3784.4,3.0]
[1733329375933,2.2854,3787.2,3784.4,3.0]
[1733329375934,0.53396108,3786.0,3784.4,3.0]
[1733329376290,0.03302746,3785.9,3783.7,3.0]
[1733329376573,0.03302746,3785.9,3783.4,2.8036856]
[1733329376574,0.27036825,3786.5,3785.5,2.6416]
[1733329376774,0.616233,3787.0,3785.5,2.6416]
[1733329376979,0.616233,3787.0,3784.2,2.6425]
[1733329376980,0.53829406,3786.3,3784.9,3.0]
[1733329377280,0.03301925,3786.2,3785.1,2.64188]
[1733329377481,0.03301925,3786.2,3784.7,3.0]
[1733329377683,0.03301925,3786.2,3784.1,2.64263]
[1733329377895,0.03301925,3786.2,3784.2,3.0]
[1733329378040,0.03301925,3786.2,3785.3,2.64176]
[1733329378242,0.03302258,3786.9,3784.4,5.64239]
[1733329378480,0.23752561,3786.8,3785.3,2.64175]
[1733329378664,0.53599437,3785.5,3784.9,2.64204]
[1733329378864,0.0330264,3785.4,3785.0,3.0]
[1733329379066,0.27055157,3786.5,3785.0,2.64199]
[1733329379268,0.54016656,3785.7,3783.9,4.17491]
[1733329379503,0.55,3785.6,3784.8,2.64208]
[1733329379645,0.54016656,3785.7,3784.0,0.0160199]
[1733329379992,0.54016656,3785.7,3785.6,2.64158]
[1733329380576,0.54016656,3785.7,3784.2,2.64256]
[1733329380577,0.54016656,3785.7,3784.8,2.64209]
[1733329380777,0.03302172,3785.6,3784.7,2.64221]
[1733329381115,0.03302742,3785.6,3784.7,3.0]
[1733329381333,0.52891749,3785.9,3784.2,2.64253]
[1733329381612,0.03303098,3785.8,3784.8,2.64213]
[1733329381815,0.03303098,3785.8,3783.6,0.01602002]
[1733329382115,0.03302596,3785.7,3785.2,2.64182]
[1733329382318,0.2707849,3786.2,3783.5,2.64305]
[1733329382504,0.23810635,3786.8,3785.9,2.64135]
[1733329382817,0.51687624,3786.4,3785.5,3.0]
[1733329383122,0.51687624,3786.4,3785.9,2.64135]
[1733329383300,0.03302068,3786.9,3785.5,3.0]
[1733329383508,1.40586391,3787.3,3785.9,3.0]
[1733329383679,1.40586391,3787.3,3785.9,4.5177]
[1733329383912,0.38004098,3787.6,3787.5,2.64026]
[1733329384108,0.71027966,3789.7,3787.6,2.64015]
[1733329384315,0.0330026,3788.6,3787.8,2.64002]
[1733329384610,0.0330026,3788.6,3787.4,3.0]
[1733329384611,0.53496008,3788.0,3787.4,3.0]
[1733329384814,0.03300004,3787.9,3787.5,3.0]
[1733329385065,0.52778011,3788.1,3786.0,1.6249]
[1733329385227,0.03300798,3788.0,3786.0,1.6249]
[1733329385427,0.03300798,3788.0,3785.2,2.64186]
[1733329385649,0.03300798,3788.0,3785.1,1.6249]
[1733329385650,0.27131754,3788.0,3785.1,2.64186]
[1733329385955,0.27131754,3788.0,3784.2,5.28253]
[1733329385956,0.55,3786.5,3784.2,2.64]
[1733329386122,0.55,3786.3,3784.2,5.28256]
[1733329386329,0.53965873,3786.5,3784.2,2.64]
[1733329386330,0.55,3786.1,3784.2,2.64]
[1733329386539,0.55,3785.9,3784.2,2.64]
[1733329386749,0.55,3785.7,3784.2,2.64]
[1733329386910,0.55,3785.5,3784.2,2.64]
[1733329387362,0.55,3785.5,3784.3,2.64249]
[1733329387652,0.23830224,3786.7,3784.3,2.64249]
[1733329387653,0.53654389,3786.3,3785.6,2.64157]
[1733329387874,8.79,3787.7,3785.6,2.64157]
[1733329387875,0.55,3786.1,3785.6,2.64157]
[1733329388156,0.41411922,3786.5,3784.8,1.5721]
[1733329388157,0.55,3786.3,3784.8,1.5721]
[1733329388376,0.52139206,3786.5,3785.5,2.64165]
[1733329388581,0.38097738,3786.9,3785.0,3.0]
[1733329388858,3.05269813,3788.5,3786.7,2.6408]
[1733329388859,0.38089457,3787.3,3786.7,2.6408]
[1733329389173,0.23805433,3786.8,3786.7,2.6408]
[1733329389322,0.5458576,3787.7,3786.9,2.64067]
[1733329389520,0.44613897,3788.5,3786.9,2.64067]
[1733329389521,0.61881,3787.6,3786.9,2.64067]
[1733329389719,0.23800451,3787.5,3786.2,3.0]